[Event "Live Chess"]
[Site "Chess.com"]
[Date "2023.05.21"]
[Round "-"]
[White "WelshTiger"]
[Black "ramses-IIG"]
[Result "1-0"]
[WhiteElo "2321"]
[BlackElo "854"]
[TimeControl "300"]
[EndTime "8:43:13 PDT"]
[Termination "WelshTiger won by checkmate"]

1. e4 {[%clk 0:04:58.5]} 1... d5 {[%clk 0:04:58.6]} 2. Nc3 {[%clk 0:04:53.3]}
2... d4 {[%clk 0:04:56.4]} 3. Nce2 {[%clk 0:04:52.2]} 3... Nc6 {[%clk
0:04:56.3]} 4. Nf3 {[%clk 0:04:47.8]} 4... e5 {[%clk 0:04:38.8]} 5. Ng3 {[%clk
0:04:47.1]} 5... Bg4 {[%clk 0:04:35.7]} 6. h3 {[%clk 0:04:43.3]} 6... Bh5 {[%clk
0:04:30.1]} 7. Nxh5 {[%clk 0:04:41.4]} 7... Bb4 {[%clk 0:04:22.2]} 8. Nxg7+
{[%clk 0:04:38.4]} 8... Kf8 {[%clk 0:04:19.2]} 9. Nf5 {[%clk 0:04:38.3]} 9...
Qd7 {[%clk 0:04:17]} 10. Bb5 {[%clk 0:04:33.7]} 10... a6 {[%clk 0:04:15.2]} 11.
Nxe5 {[%clk 0:04:32.1]} 11... Qe6 {[%clk 0:04:09.3]} 12. Bxc6 {[%clk 0:04:25.7]}
12... bxc6 {[%clk 0:04:09.2]} 13. f4 {[%clk 0:03:47.6]} 13... f6 {[%clk
0:04:07.1]} 14. O-O {[%clk 0:03:46.7]} 14... fxe5 {[%clk 0:04:04.7]} 15. fxe5
{[%clk 0:03:46.6]} 15... Qxe5 {[%clk 0:03:59.9]} 16. d3 {[%clk 0:03:45.8]} 16...
Nf6 {[%clk 0:03:47.1]} 17. Bg5 {[%clk 0:03:44.3]} 17... Rg8 {[%clk 0:03:35.3]}
18. Bxf6 {[%clk 0:03:40.4]} 18... Qe6 {[%clk 0:03:21.6]} 19. Bxd4 {[%clk
0:03:34.1]} 19... Ke8 {[%clk 0:03:18.1]} 20. Ng7+ {[%clk 0:03:26.3]} 20... Rxg7
{[%clk 0:03:14.7]} 21. Bxg7 {[%clk 0:03:26.2]} 21... Qg6 {[%clk 0:03:12.9]} 22.
Bd4 {[%clk 0:03:23.4]} 22... Kd7 {[%clk 0:03:11.6]} 23. Qf3 {[%clk 0:03:20.8]}
23... Rg8 {[%clk 0:03:04.4]} 24. Qf7+ {[%clk 0:03:18.5]} 24... Kc8 {[%clk
0:03:03.3]} 25. Qxg6 {[%clk 0:03:15.5]} 25... Rxg6 {[%clk 0:03:01.3]} 26. Rf6
{[%clk 0:03:13.5]} 26... Rg5 {[%clk 0:02:55.8]} 27. Rxc6 {[%clk 0:03:09.8]}
27... Kb7 {[%clk 0:02:53.3]} 28. Rc4 {[%clk 0:03:08.3]} 28... Bd2 {[%clk
0:02:49.3]} 29. Rf1 {[%clk 0:03:04.3]} 29... h5 {[%clk 0:02:44.6]} 30. Rf5
{[%clk 0:03:02.3]} 30... Rg6 {[%clk 0:02:41.9]} 31. Rxh5 {[%clk 0:03:00.5]}
31... Rg3 {[%clk 0:02:39.5]} 32. Bf2 {[%clk 0:02:58.7]} 32... Rg8 {[%clk
0:02:36.5]} 33. Rh7 {[%clk 0:02:57.7]} 33... Rc8 {[%clk 0:02:34.8]} 34. Bg3
{[%clk 0:02:57.1]} 34... Be3+ {[%clk 0:02:31.8]} 35. Kh2 {[%clk 0:02:56.6]}
35... Bb6 {[%clk 0:02:25.5]} 36. Bxc7 {[%clk 0:02:55.5]} 36... Bxc7+ {[%clk
0:02:24.6]} 37. Rcxc7+ {[%clk 0:02:54.7]} 37... Rxc7 {[%clk 0:02:24.2]} 38.
Rxc7+ {[%clk 0:02:53.8]} 38... Kxc7 {[%clk 0:02:24.1]} 39. Kg3 {[%clk
0:02:52.7]} 39... Kd6 {[%clk 0:02:24]} 40. Kf4 {[%clk 0:02:52.1]} 40... Kc5
{[%clk 0:02:22.7]} 41. c3 {[%clk 0:02:48.3]} 41... Kb5 {[%clk 0:02:20.6]} 42. b3
{[%clk 0:02:47.2]} 42... a5 {[%clk 0:02:18.5]} 43. a4+ {[%clk 0:02:46.6]} 43...
Kc5 {[%clk 0:02:16.7]} 44. h4 {[%clk 0:02:45.8]} 44... Kd6 {[%clk 0:02:14.8]}
45. h5 {[%clk 0:02:45.7]} 45... Ke6 {[%clk 0:02:13.5]} 46. h6 {[%clk 0:02:45.6]}
46... Kf6 {[%clk 0:02:12.7]} 47. g4 {[%clk 0:02:44.3]} 47... Kg6 {[%clk
0:02:09.9]} 48. g5 {[%clk 0:02:43.8]} 48... Kh5 {[%clk 0:02:08.9]} 49. b4 {[%clk
0:02:42.8]} 49... axb4 {[%clk 0:02:05.7]} 50. cxb4 {[%clk 0:02:42.7]} 50... Kh4
{[%clk 0:02:03.7]} 51. a5 {[%clk 0:02:42.6]} 51... Kh3 {[%clk 0:02:00.3]} 52. a6
{[%clk 0:02:42.5]} 52... Kg2 {[%clk 0:02:00.1]} 53. a7 {[%clk 0:02:42.4]} 53...
Kf2 {[%clk 0:02:00]} 54. a8=Q {[%clk 0:02:41.2]} 54... Ke2 {[%clk 0:01:59.9]}
55. b5 {[%clk 0:02:40.1]} 55... Kd1 {[%clk 0:01:59.8]} 56. b6 {[%clk 0:02:39.9]}
56... Kd2 {[%clk 0:01:59.7]} 57. b7 {[%clk 0:02:39.7]} 57... Ke1 {[%clk
0:01:59.6]} 58. b8=Q {[%clk 0:02:38.6]} 58... Kf2 {[%clk 0:01:59.5]} 59. h7
{[%clk 0:02:37.8]} 59... Kf1 {[%clk 0:01:59.4]} 60. h8=Q {[%clk 0:02:36.9]}
60... Kg2 {[%clk 0:01:59.3]} 61. g6 {[%clk 0:02:36.5]} 61... Kf2 {[%clk
0:01:59.2]} 62. g7 {[%clk 0:02:36.1]} 62... Ke2 {[%clk 0:01:59.1]} 63. e5 {[%clk
0:02:35.4]} 63... Ke1 {[%clk 0:01:59]} 64. d4 {[%clk 0:02:34.9]} 64... Kf1
{[%clk 0:01:58.9]} 65. d5 {[%clk 0:02:34.5]} 65... Kg1 {[%clk 0:01:58.8]} 66. d6
{[%clk 0:02:34.1]} 66... Kf1 {[%clk 0:01:57.6]} 67. e6 {[%clk 0:02:32.7]} 67...
Kf2 {[%clk 0:01:57.5]} 68. e7 {[%clk 0:02:32]} 68... Kf1 {[%clk 0:01:57.4]} 69.
d7 {[%clk 0:02:31]} 69... Kf2 {[%clk 0:01:57.3]} 70. g8=Q {[%clk 0:02:29.1]}
70... Kf1 {[%clk 0:01:57.2]} 71. Qhh1+ {[%clk 0:02:26]} 71... Kf2 {[%clk
0:01:57.1]} 72. Qhg2+ {[%clk 0:02:23.9]} 72... Ke1 {[%clk 0:01:54.3]} 73. e8=Q+
{[%clk 0:02:22.8]} 73... Kd1 {[%clk 0:01:52.5]} 74. d8=Q+ {[%clk 0:02:22.7]}
74... Kc1 {[%clk 0:01:51.5]} 75. Qa3# {[%clk 0:02:13.1]} 1-0

[Event "Live Chess"]
[Site "Chess.com"]
[Date "2023.05.21"]
[Round "-"]
[White "Tiltador"]
[Black "educatedlad"]
[Result "0-1"]
[WhiteElo "934"]
[BlackElo "1614"]
[TimeControl "300"]
[EndTime "8:43:14 PDT"]
[Termination "educatedlad won by resignation"]

1. d4 {[%clk 0:04:56.4]} 1... d5 {[%clk 0:04:58.8]} 2. c3 {[%clk 0:04:55]} 2...
Nf6 {[%clk 0:04:55.6]} 3. e3 {[%clk 0:04:54.1]} 3... e6 {[%clk 0:04:55.1]} 4.
Bb5+ {[%clk 0:04:51.7]} 4... c6 {[%clk 0:04:53.3]} 5. Bd3 {[%clk 0:04:50.5]}
5... Bd6 {[%clk 0:04:52.8]} 6. Nf3 {[%clk 0:04:49.4]} 6... Nbd7 {[%clk
0:04:52.4]} 7. O-O {[%clk 0:04:48.5]} 7... O-O {[%clk 0:04:51.9]} 8. Ne5 {[%clk
0:04:47.5]} 8... Nxe5 {[%clk 0:04:50]} 9. dxe5 {[%clk 0:04:46.4]} 9... Bxe5
{[%clk 0:04:49.9]} 10. f4 {[%clk 0:04:44.4]} 10... Bc7 {[%clk 0:04:45.4]} 11.
Nd2 {[%clk 0:04:42.9]} 11... b6 {[%clk 0:04:44.4]} 12. Nf3 {[%clk 0:04:41.9]}
12... a5 {[%clk 0:04:43.8]} 13. Ne5 {[%clk 0:04:41]} 13... Ba6 {[%clk
0:04:42.7]} 14. Bxa6 {[%clk 0:04:34.6]} 14... Rxa6 {[%clk 0:04:41.2]} 15. Nxc6
{[%clk 0:04:33.1]} 15... Qd7 {[%clk 0:04:39]} 16. Ne5 {[%clk 0:04:30.1]} 16...
Bxe5 {[%clk 0:04:37.1]} 17. fxe5 {[%clk 0:04:28.4]} 17... Ne4 {[%clk 0:04:37]}
18. Bd2 {[%clk 0:04:14.4]} 18... Qc7 {[%clk 0:04:33.3]} 19. Qh5 {[%clk
0:03:59.2]} 19... Nxd2 {[%clk 0:04:30.8]} 20. Rfd1 {[%clk 0:03:51.1]} 20... Ne4
{[%clk 0:04:22.2]} 21. Qe2 {[%clk 0:03:38.3]} 21... Qxe5 {[%clk 0:04:20.1]} 22.
Qxa6 {[%clk 0:03:36.2]} 22... Qg5 {[%clk 0:04:13.8]} 23. Qxb6 {[%clk 0:03:25.2]}
23... Rd8 {[%clk 0:04:05.9]} 24. Re1 {[%clk 0:03:10.1]} 24... Rd6 {[%clk
0:03:49.6]} 25. Qxa5 {[%clk 0:03:07.1]} 25... h5 {[%clk 0:03:44.6]} 26. Qa7
{[%clk 0:02:49.9]} 26... Qh4 {[%clk 0:03:40.7]} 27. Rf1 {[%clk 0:02:37.2]} 27...
Qg5 {[%clk 0:03:33.4]} 28. Qxf7+ {[%clk 0:02:35.4]} 28... Kh8 {[%clk 0:03:32.2]}
29. Qf8+ {[%clk 0:02:29.4]} 29... Kh7 {[%clk 0:03:31.3]} 30. Rae1 {[%clk
0:02:12.3]} 30... Rb6 {[%clk 0:03:22.7]} 31. Rf7 {[%clk 0:02:04.3]} 31... Rxb2
{[%clk 0:03:20]} 32. Rxg7+ {[%clk 0:02:02.4]} 32... Qxg7 {[%clk 0:03:18.4]} 33.
Qxg7+ {[%clk 0:02:01.3]} 33... Kxg7 {[%clk 0:03:17.8]} 34. a4 {[%clk 0:01:54.7]}
34... Nxc3 {[%clk 0:03:15.6]} 35. a5 {[%clk 0:01:51]} 35... Ra2 {[%clk
0:03:13.4]} 36. h3 {[%clk 0:01:49.6]} 36... Rxa5 {[%clk 0:03:12.4]} 37. Rc1
{[%clk 0:01:47.8]} 37... Ne2+ {[%clk 0:03:10.3]} 38. Kh2 {[%clk 0:01:45.2]}
38... Nxc1 {[%clk 0:03:10.2]} 0-1

[Event "Live Chess"]
[Site "Chess.com"]
[Date "2023.05.21"]
[Round "-"]
[White "SavagePawn7"]
[Black "Conradical12"]
[Result "0-1"]
[WhiteElo "775"]
[BlackElo "1507"]
[TimeControl "300"]
[EndTime "8:43:25 PDT"]
[Termination "Conradical12 won by checkmate"]

1. e4 {[%clk 0:04:54.2]} 1... e5 {[%clk 0:04:59.7]} 2. d4 {[%clk 0:04:52.7]}
2... Nc6 {[%clk 0:04:59.4]} 3. d5 {[%clk 0:04:50.9]} 3... Nce7 {[%clk
0:04:56.5]} 4. Nf3 {[%clk 0:04:48.1]} 4... d6 {[%clk 0:04:55.9]} 5. Nc3 {[%clk
0:04:47]} 5... f5 {[%clk 0:04:55.5]} 6. Bb5+ {[%clk 0:04:39.8]} 6... c6 {[%clk
0:04:53.8]} 7. Bd3 {[%clk 0:04:37.6]} 7... cxd5 {[%clk 0:04:51.3]} 8. exd5
{[%clk 0:04:36.1]} 8... Nf6 {[%clk 0:04:45.7]} 9. Ng5 {[%clk 0:04:26.7]} 9... h6
{[%clk 0:04:43.1]} 10. Ne6 {[%clk 0:04:24.7]} 10... Bxe6 {[%clk 0:04:39.5]} 11.
dxe6 {[%clk 0:04:23.1]} 11... e4 {[%clk 0:04:39.1]} 12. Bb5+ {[%clk 0:04:15.3]}
12... Nc6 {[%clk 0:04:38.5]} 13. Bxc6+ {[%clk 0:04:13.3]} 13... bxc6 {[%clk
0:04:37.3]} 14. O-O {[%clk 0:04:08.8]} 14... g5 {[%clk 0:04:35.9]} 15. Na4
{[%clk 0:03:55.9]} 15... d5 {[%clk 0:04:35.1]} 16. Be3 {[%clk 0:03:51.7]} 16...
Qc7 {[%clk 0:04:33.7]} 17. Bc5 {[%clk 0:03:49.6]} 17... Bxc5 {[%clk 0:04:28.8]}
18. Nxc5 {[%clk 0:03:48.2]} 18... O-O-O {[%clk 0:04:25.3]} 19. Qe2 {[%clk
0:03:35.6]} 19... Ng4 {[%clk 0:04:24]} 20. Qa6+ {[%clk 0:03:25.5]} 20... Kb8
{[%clk 0:04:23.5]} 21. Nd7+ {[%clk 0:03:21.5]} 21... Rxd7 {[%clk 0:04:21.5]} 22.
e7 {[%clk 0:03:19.7]} 22... Qxh2# {[%clk 0:04:20.5]} 0-1

[Event "Live Chess"]
[Site "Chess.com"]
[Date "2023.05.21"]
[Round "-"]
[White "GMHarry-youtube"]
[Black "Tema1107"]
[Result "1-0"]
[WhiteElo "2001"]
[BlackElo "1951"]
[TimeControl "300"]
[EndTime "8:43:26 PDT"]
[Termination "GMHarry-youtube won on time"]

1. e4 {[%clk 0:04:55.1]} 1... c5 {[%clk 0:04:53.6]} 2. Nf3 {[%clk 0:04:53.6]}
2... d6 {[%clk 0:04:49.4]} 3. Bb5+ {[%clk 0:04:52.1]} 3... Bd7 {[%clk
0:04:47.5]} 4. Bxd7+ {[%clk 0:04:47.8]} 4... Qxd7 {[%clk 0:04:47.4]} 5. c4
{[%clk 0:04:47]} 5... Nf6 {[%clk 0:04:45.5]} 6. Nc3 {[%clk 0:04:45.1]} 6... g6
{[%clk 0:04:29]} 7. d4 {[%clk 0:04:41.4]} 7... cxd4 {[%clk 0:04:21.7]} 8. Nxd4
{[%clk 0:04:37.2]} 8... Bg7 {[%clk 0:04:19.5]} 9. f3 {[%clk 0:04:34.7]} 9... O-O
{[%clk 0:04:04.9]} 10. Be3 {[%clk 0:04:32.6]} 10... Nc6 {[%clk 0:03:37.3]} 11.
Qd2 {[%clk 0:04:28.8]} 11... Rac8 {[%clk 0:03:16.6]} 12. O-O {[%clk 0:04:26.3]}
12... a6 {[%clk 0:03:02.2]} 13. b3 {[%clk 0:04:22.9]} 13... Rfd8 {[%clk
0:02:51.6]} 14. Rac1 {[%clk 0:04:20.6]} 14... e6 {[%clk 0:02:26.9]} 15. Na4
{[%clk 0:04:16.5]} 15... Qe8 {[%clk 0:01:43.6]} 16. Nb6 {[%clk 0:04:13.4]} 16...
Rc7 {[%clk 0:01:33.2]} 17. Nxc6 {[%clk 0:04:04.3]} 17... Rxc6 {[%clk 0:01:33.1]}
18. a4 {[%clk 0:04:01.4]} 18... Nd7 {[%clk 0:01:05]} 19. a5 {[%clk 0:03:56.8]}
19... e5 {[%clk 0:00:37.6]} 20. Rfd1 {[%clk 0:03:53.9]} 20... Nc5 {[%clk
0:00:36.7]} 21. Bxc5 {[%clk 0:03:52.1]} 21... Rxc5 {[%clk 0:00:36.6]} 22. b4
{[%clk 0:03:51]} 22... Rc6 {[%clk 0:00:32.9]} 23. c5 {[%clk 0:03:50]} 23... Bf8
{[%clk 0:00:30.8]} 24. Qd5 {[%clk 0:03:42.9]} 24... Be7 {[%clk 0:00:20]} 25.
cxd6 {[%clk 0:03:37]} 25... Rcxd6 {[%clk 0:00:19.9]} 26. Qb3 {[%clk 0:03:35.9]}
26... Rxd1+ {[%clk 0:00:18]} 27. Rxd1 {[%clk 0:03:35.8]} 27... Rxd1+ {[%clk
0:00:17.3]} 28. Qxd1 {[%clk 0:03:35.7]} 28... Bxb4 {[%clk 0:00:16.6]} 29. Nd5
{[%clk 0:03:31.6]} 29... Bc5+ {[%clk 0:00:15.9]} 30. Kh1 {[%clk 0:03:28.6]}
30... Qb5 {[%clk 0:00:15.5]} 31. Nf6+ {[%clk 0:03:21.1]} 31... Kg7 {[%clk
0:00:14.9]} 32. Ng4 {[%clk 0:03:17.9]} 32... Bd4 {[%clk 0:00:14.3]} 33. Qe1
{[%clk 0:03:14.2]} 33... h5 {[%clk 0:00:13.7]} 34. Nf2 {[%clk 0:03:04.6]} 34...
Bxf2 {[%clk 0:00:12.9]} 35. Qxf2 {[%clk 0:03:04.3]} 35... Qb1+ {[%clk
0:00:12.6]} 36. Qg1 {[%clk 0:03:03.3]} 36... Qxg1+ {[%clk 0:00:12.3]} 37. Kxg1
{[%clk 0:03:03.2]} 37... Kf6 {[%clk 0:00:11.8]} 38. Kf2 {[%clk 0:03:02.7]} 38...
Ke6 {[%clk 0:00:11.7]} 39. Ke3 {[%clk 0:03:02.6]} 39... Kd6 {[%clk 0:00:11.6]}
40. Kd3 {[%clk 0:03:02.5]} 40... Kc5 {[%clk 0:00:11.5]} 41. g4 {[%clk
0:02:56.3]} 41... h4 {[%clk 0:00:10.2]} 42. Ke3 {[%clk 0:02:54.1]} 42... Kb5
{[%clk 0:00:09.6]} 43. f4 {[%clk 0:02:53.7]} 43... exf4+ {[%clk 0:00:09.5]} 44.
Kxf4 {[%clk 0:02:53.6]} 44... Kxa5 {[%clk 0:00:09.4]} 45. Kg5 {[%clk 0:02:53]}
45... b5 {[%clk 0:00:08.9]} 46. Kf6 {[%clk 0:02:52.6]} 46... b4 {[%clk
0:00:08.7]} 47. Kxf7 {[%clk 0:02:52.5]} 47... b3 {[%clk 0:00:08.6]} 48. e5
{[%clk 0:02:52.4]} 48... b2 {[%clk 0:00:08.5]} 49. e6 {[%clk 0:02:52.3]} 49...
b1=Q {[%clk 0:00:08.4]} 50. e7 {[%clk 0:02:52.2]} 50... Qf1+ {[%clk 0:00:06.3]}
51. Kxg6 {[%clk 0:02:50.9]} 51... Qf4 {[%clk 0:00:05.6]} 52. e8=Q {[%clk
0:02:48.5]} 52... Qxg4+ {[%clk 0:00:05.3]} 53. Kh6 {[%clk 0:02:47]} 53... Qf4+
{[%clk 0:00:04.7]} 54. Kh5 {[%clk 0:02:46]} 54... Qxh2 {[%clk 0:00:04.4]} 55.
Qd8+ {[%clk 0:02:44]} 55... Kb4 {[%clk 0:00:03.5]} 56. Qd4+ {[%clk 0:02:43.4]}
56... Kb3 {[%clk 0:00:02.4]} 57. Qd1+ {[%clk 0:02:42.7]} 57... Kc3 {[%clk
0:00:01.1]} 58. Qe1+ {[%clk 0:02:41.5]} 58... Kd3 {[%clk 0:00:00.3]} 59. Qf1+
{[%clk 0:02:40.2]} 1-0

[Event "Live Chess"]
[Site "Chess.com"]
[Date "2023.05.21"]
[Round "-"]
[White "bedsdrout"]
[Black "djw60"]
[Result "1-0"]
[WhiteElo "1918"]
[BlackElo "2165"]
[TimeControl "300"]
[EndTime "8:43:28 PDT"]
[Termination "bedsdrout won by resignation"]

1. e4 {[%clk 0:04:49.4]} 1... e6 {[%clk 0:04:58.7]} 2. Nc3 {[%clk 0:04:47.2]}
2... d5 {[%clk 0:04:57.5]} 3. exd5 {[%clk 0:04:42.4]} 3... exd5 {[%clk
0:04:56.1]} 4. d4 {[%clk 0:04:40.2]} 4... Nf6 {[%clk 0:04:53.6]} 5. Nf3 {[%clk
0:04:37.6]} 5... c6 {[%clk 0:04:51.1]} 6. Bf4 {[%clk 0:04:34.7]} 6... Bd6 {[%clk
0:04:49.5]} 7. Bxd6 {[%clk 0:04:31.9]} 7... Qxd6 {[%clk 0:04:46.3]} 8. Bd3
{[%clk 0:04:28.4]} 8... O-O {[%clk 0:04:44.7]} 9. O-O {[%clk 0:04:24.1]} 9...
Bg4 {[%clk 0:04:44.1]} 10. a3 {[%clk 0:04:21.9]} 10... Nbd7 {[%clk 0:04:42.1]}
11. h3 {[%clk 0:04:19.6]} 11... Bh5 {[%clk 0:04:40]} 12. g4 {[%clk 0:04:18]}
12... Bg6 {[%clk 0:04:38.6]} 13. Bxg6 {[%clk 0:04:16.5]} 13... hxg6 {[%clk
0:04:34.6]} 14. Qd3 {[%clk 0:04:14.6]} 14... Rfe8 {[%clk 0:04:30.7]} 15. Rfe1
{[%clk 0:04:10.5]} 15... Qf4 {[%clk 0:04:08.1]} 16. Ne2 {[%clk 0:04:07.2]} 16...
Qe4 {[%clk 0:04:05.1]} 17. Qb3 {[%clk 0:04:03.9]} 17... Nb6 {[%clk 0:03:51.6]}
18. Ng3 {[%clk 0:04:01.3]} 18... Qf4 {[%clk 0:03:46.6]} 19. Re5 {[%clk
0:03:56.1]} 19... Nc4 {[%clk 0:03:30.7]} 20. Ree1 {[%clk 0:03:53]} 20... Ne4
{[%clk 0:03:24.4]} 21. Nxe4 {[%clk 0:03:47.3]} 21... dxe4 {[%clk 0:03:23.2]} 22.
Qxc4 {[%clk 0:03:44.7]} 22... exf3 {[%clk 0:03:18.7]} 23. Qb3 {[%clk 0:03:42.8]}
23... Rad8 {[%clk 0:02:42.2]} 24. Rxe8+ {[%clk 0:03:36.9]} 24... Rxe8 {[%clk
0:02:40.8]} 25. d5 {[%clk 0:03:26.5]} 25... cxd5 {[%clk 0:02:35.7]} 26. Qxd5
{[%clk 0:03:24.5]} 26... Qe4 {[%clk 0:02:16.9]} 27. Qxe4 {[%clk 0:03:19.3]}
27... Rxe4 {[%clk 0:02:15.8]} 28. Rd1 {[%clk 0:03:17.3]} 28... Re2 {[%clk
0:02:11.8]} 29. Rd8+ {[%clk 0:03:15.6]} 29... Kh7 {[%clk 0:02:10.2]} 30. Rd7
{[%clk 0:03:13.3]} 30... Rxc2 {[%clk 0:02:04.9]} 31. Rxb7 {[%clk 0:03:11]} 31...
f5 {[%clk 0:02:02.9]} 32. b4 {[%clk 0:03:08.4]} 32... fxg4 {[%clk 0:02:00.5]}
33. b5 {[%clk 0:03:07.2]} 33... g3 {[%clk 0:01:57]} 34. fxg3 {[%clk 0:03:05.9]}
34... Rg2+ {[%clk 0:01:55.7]} 35. Kf1 {[%clk 0:03:03.6]} 35... Rxg3 {[%clk
0:01:47.6]} 36. Rxa7 {[%clk 0:03:00.1]} 36... Rxh3 {[%clk 0:01:46.3]} 37. b6
{[%clk 0:02:58.8]} 37... Rh2 {[%clk 0:01:42.7]} 38. Ra4 {[%clk 0:02:54.6]} 38...
Rd2 {[%clk 0:01:31.9]} 39. b7 {[%clk 0:02:52.7]} 39... Rd8 {[%clk 0:01:30.1]}
40. Ra8 {[%clk 0:02:49.1]} 1-0

[Event "Live Chess"]
[Site "Chess.com"]
[Date "2023.05.21"]
[Round "-"]
[White "garyjc"]
[Black "jimwad"]
[Result "0-1"]
[WhiteElo "1075"]
[BlackElo "1222"]
[TimeControl "300"]
[EndTime "8:43:33 PDT"]
[Termination "jimwad won by resignation"]

1. e4 {[%clk 0:04:57.8]} 1... e5 {[%clk 0:04:58.7]} 2. Nf3 {[%clk 0:04:55.9]}
2... Nc6 {[%clk 0:04:57.4]} 3. d4 {[%clk 0:04:55]} 3... exd4 {[%clk 0:04:56]} 4.
Nxd4 {[%clk 0:04:53.6]} 4... Nxd4 {[%clk 0:04:54.5]} 5. Qxd4 {[%clk 0:04:52.7]}
5... b6 {[%clk 0:04:53.3]} 6. Qd5 {[%clk 0:04:47.3]} 6... c6 {[%clk 0:04:50.6]}
7. Qe5+ {[%clk 0:04:43.9]} 7... Qe7 {[%clk 0:04:43.3]} 8. Qf4 {[%clk 0:04:35.5]}
8... Nf6 {[%clk 0:04:26.3]} 9. Bd3 {[%clk 0:04:30.8]} 9... d5 {[%clk 0:04:24.6]}
10. O-O {[%clk 0:04:21.4]} 10... dxe4 {[%clk 0:04:17.9]} 11. Bxe4 {[%clk
0:04:16.4]} 11... Qd7 {[%clk 0:04:06.3]} 12. Nc3 {[%clk 0:03:56.2]} 12... Be7
{[%clk 0:04:03.7]} 13. Qf3 {[%clk 0:03:32.7]} 13... Nxe4 {[%clk 0:03:58.9]} 14.
Nxe4 {[%clk 0:03:30.8]} 14... O-O {[%clk 0:03:57.8]} 15. Bf4 {[%clk 0:03:22.1]}
15... f5 {[%clk 0:03:44.8]} 16. Ng3 {[%clk 0:03:06.5]} 16... Bf6 {[%clk
0:03:42.1]} 17. Rad1 {[%clk 0:03:04.2]} 17... Qb7 {[%clk 0:03:32.4]} 18. Nxf5
{[%clk 0:02:44.8]} 18... Bxf5 {[%clk 0:03:27.6]} 19. b4 {[%clk 0:02:31.7]} 19...
Bxc2 {[%clk 0:03:18.4]} 20. Rc1 {[%clk 0:02:26.8]} 20... Ba4 {[%clk 0:03:14.8]}
21. a3 {[%clk 0:02:23.4]} 21... Rac8 {[%clk 0:03:09.4]} 22. Qg3 {[%clk
0:02:10.6]} 22... Qf7 {[%clk 0:02:49.4]} 23. Bd6 {[%clk 0:01:55]} 23... Rfd8
{[%clk 0:02:44.7]} 24. Bf4 {[%clk 0:01:48.9]} 24... Bb5 {[%clk 0:02:39]} 25.
Rfe1 {[%clk 0:01:43.1]} 25... Rd3 {[%clk 0:02:29.4]} 26. Qg4 {[%clk 0:01:35.1]}
26... Re8 {[%clk 0:02:14.9]} 27. Rxe8+ {[%clk 0:01:23.7]} 27... Qxe8 {[%clk
0:02:13.5]} 28. h3 {[%clk 0:01:21.9]} 28... Rxa3 {[%clk 0:02:07.3]} 29. Bh6
{[%clk 0:01:18.5]} 29... Be2 {[%clk 0:01:56.5]} 30. Rxc6 {[%clk 0:01:14.7]}
30... Bxg4 {[%clk 0:01:50.4]} 0-1

[Event "Live Chess"]
[Site "Chess.com"]
[Date "2023.05.21"]
[Round "-"]
[White "boilerboy1"]
[Black "GEMdzq"]
[Result "0-1"]
[WhiteElo "1054"]
[BlackElo "2217"]
[TimeControl "300"]
[EndTime "8:43:36 PDT"]
[Termination "GEMdzq won on time"]

1. e4 {[%clk 0:04:55.1]} 1... d6 {[%clk 0:04:59.4]} 2. d4 {[%clk 0:04:51.4]}
2... Nf6 {[%clk 0:04:59.3]} 3. Nc3 {[%clk 0:04:49.3]} 3... g6 {[%clk 0:04:59.2]}
4. Nf3 {[%clk 0:04:47]} 4... Bg7 {[%clk 0:04:59.1]} 5. Bd3 {[%clk 0:04:45.3]}
5... O-O {[%clk 0:04:57.6]} 6. Be3 {[%clk 0:04:43.5]} 6... Ng4 {[%clk
0:04:55.3]} 7. Bd2 {[%clk 0:04:38.8]} 7... c5 {[%clk 0:04:51.7]} 8. d5 {[%clk
0:04:24.7]} 8... Nd7 {[%clk 0:04:41.8]} 9. O-O {[%clk 0:04:21.8]} 9... Nde5
{[%clk 0:04:40.2]} 10. Nxe5 {[%clk 0:04:17.5]} 10... Nxe5 {[%clk 0:04:40.1]} 11.
Be2 {[%clk 0:04:13.2]} 11... f5 {[%clk 0:04:36.6]} 12. f4 {[%clk 0:04:08.9]}
12... Nf7 {[%clk 0:04:35.8]} 13. exf5 {[%clk 0:04:04.3]} 13... Bxf5 {[%clk
0:04:35.7]} 14. Bf3 {[%clk 0:03:59.3]} 14... Rb8 {[%clk 0:04:32.8]} 15. Be3
{[%clk 0:03:54]} 15... b5 {[%clk 0:04:31.5]} 16. Ne2 {[%clk 0:03:42.2]} 16...
Bxb2 {[%clk 0:04:28.1]} 17. Rb1 {[%clk 0:03:40.5]} 17... Bg7 {[%clk 0:04:27.2]}
18. Ng3 {[%clk 0:03:38]} 18... Nh6 {[%clk 0:04:21.7]} 19. Nxf5 {[%clk
0:03:27.8]} 19... Nxf5 {[%clk 0:04:21.6]} 20. Bf2 {[%clk 0:03:24.7]} 20... Qa5
{[%clk 0:04:15.9]} 21. Bg4 {[%clk 0:02:59.4]} 21... Qxa2 {[%clk 0:04:13.3]} 22.
Bxf5 {[%clk 0:02:56.6]} 22... gxf5 {[%clk 0:04:09.5]} 23. c4 {[%clk 0:02:51.9]}
23... Qxc4 {[%clk 0:04:07.7]} 24. Qf3 {[%clk 0:02:43.8]} 24... Qe4 {[%clk
0:04:05.2]} 25. Qh5 {[%clk 0:02:38]} 25... Qxd5 {[%clk 0:04:02.6]} 26. Rfe1
{[%clk 0:02:32.7]} 26... Qf7 {[%clk 0:04:01.7]} 27. Qh4 {[%clk 0:02:22.5]} 27...
e5 {[%clk 0:04:00.4]} 28. fxe5 {[%clk 0:02:19.7]} 28... Bxe5 {[%clk 0:03:59.1]}
29. Bg3 {[%clk 0:02:10]} 29... f4 {[%clk 0:03:47.7]} 30. Qg4+ {[%clk 0:02:05.5]}
30... Qg6 {[%clk 0:03:46.5]} 31. Qxg6+ {[%clk 0:02:03.7]} 31... hxg6 {[%clk
0:03:46.4]} 32. Bh4 {[%clk 0:02:02.3]} 32... c4 {[%clk 0:03:42.5]} 33. Bg5
{[%clk 0:01:58.2]} 33... b4 {[%clk 0:03:41.2]} 34. Be7 {[%clk 0:01:48.4]} 34...
Rf7 {[%clk 0:03:36.9]} 35. Bh4 {[%clk 0:01:15.5]} 35... b3 {[%clk 0:03:34.2]}
36. Re4 {[%clk 0:00:53.1]} 36... c3 {[%clk 0:03:32.8]} 37. Be1 {[%clk
0:00:48.2]} 37... c2 {[%clk 0:03:32]} 38. Rc1 {[%clk 0:00:42.6]} 38... b2 {[%clk
0:03:31.6]} 39. Rxc2 {[%clk 0:00:40.3]} 39... b1=Q {[%clk 0:03:31.2]} 40. Rce2
{[%clk 0:00:26]} 40... Rb2 {[%clk 0:03:27.5]} 41. Rxb2 {[%clk 0:00:12.5]} 41...
Qxb2 {[%clk 0:03:26.6]} 0-1